[Event "Schack-SM 2023: Veteran-SM 50+"]
[Site "Helsingborg Arena, Mellersta Stenbocksgatan 14, Helsingborg, Sweden"]
[Date "2023.07.01"]
[Round "1.2"]
[White "Knudsen, Andre"]
[Black "Svensson, Hakan"]
[Result "1-0"]
[TimeControl "90 minutes for 40 moves + 30 minutes for the rest of games + 30 seconds per move from move one."]
[WhiteElo "1842"]
[BlackElo "2054"]

1. d4 {[%clk 01:30:56]} {[%emt 00:00:03]} d5 {[%clk 01:30:53]} {[%emt
00:00:08]} 2. Nf3 {[%clk 01:31:00]} {[%emt 00:00:26]} Nf6 {[%clk 01:31:12]}
{[%emt 00:00:11]} 3. c4 {[%clk 01:31:19]} {[%emt 00:00:11]} e6 {[%clk
01:31:17]} {[%emt 00:00:25]} 4. Nc3 {[%clk 01:31:42]} {[%emt 00:00:07]} c5
{[%clk 01:31:42]} {[%emt 00:00:05]} 5. e3 {[%clk 01:31:44]} {[%emt 00:00:29]}
Nc6 {[%clk 01:31:06]} {[%emt 00:01:04]} 6. Be2 {[%clk 01:26:45]} {[%emt
00:05:31]} dxc4 {[%clk 01:30:45]} {[%emt 00:00:51]} 7. O-O {[%clk 01:26:34]}
{[%emt 00:00:40]} a6 {[%clk 01:30:08]} {[%emt 00:01:07]} 8. a4 {[%clk
01:25:13]} {[%emt 00:01:52]} Qc7 {[%clk 01:28:44]} {[%emt 00:01:53]} 9. Bxc4
{[%clk 01:24:32]} {[%emt 00:01:11]} Be7 {[%clk 01:25:57]} {[%emt 00:03:17]} 10.
d5 {[%clk 01:18:39]} {[%emt 00:06:24]} exd5 {[%clk 01:25:11]} {[%emt 00:01:15]}
11. Nxd5 {[%clk 01:19:01]} {[%emt 00:00:08]} Nxd5 {[%clk 01:24:59]} {[%emt
00:00:42]} 12. Bxd5 {[%clk 01:19:25]} {[%emt 00:00:06]} O-O {[%clk 01:21:06]}
{[%emt 00:04:22]} 13. Qe2 {[%clk 01:15:10]} {[%emt 00:04:45]} Nb4 {[%clk
01:11:07]} {[%emt 00:10:29]} 14. Bb3 {[%clk 01:12:39]} {[%emt 00:03:02]} Bf6
{[%clk 01:10:00]} {[%emt 00:01:36]} 15. h3 {[%clk 01:09:47]} {[%emt 00:03:22]}
Bf5 {[%clk 01:04:53]} {[%emt 00:05:37]} 16. Rd1 {[%clk 01:08:34]} {[%emt
00:01:44]} Rfd8 {[%clk 01:02:04]} {[%emt 00:03:18]} 17. Bc4 {[%clk 00:55:28]}
{[%emt 00:13:37]} Rxd1+ {[%clk 00:56:26]} {[%emt 00:06:09]} 18. Qxd1 {[%clk
00:55:50]} {[%emt 00:00:07]} Rd8 {[%clk 00:56:16]} {[%emt 00:00:39]} 19. Qe2
{[%clk 00:56:14]} {[%emt 00:00:06]} Bc2 {[%clk 00:44:30]} {[%emt 00:12:16]} 20.
Nd2 {[%clk 00:44:51]} {[%emt 00:11:54]} Bd3 {[%clk 00:34:36]} {[%emt 00:10:24]}
21. Bxd3 {[%clk 00:44:09]} {[%emt 00:01:11]} Rxd3 {[%clk 00:33:28]} {[%emt
00:01:39]} 22. Ne4 {[%clk 00:43:57]} {[%emt 00:00:42]} Qc6 {[%clk 00:27:03]}
{[%emt 00:06:52]} 23. f3 {[%clk 00:37:49]} {[%emt 00:06:41]} Be7 {[%clk
00:22:44]} {[%emt 00:04:46]} 24. Nf2 {[%clk 00:38:08]} {[%emt 00:00:14]} Rb3
{[%clk 00:19:34]} {[%emt 00:03:39]} 25. e4 {[%clk 00:35:30]} {[%emt 00:03:09]}
c4 {[%clk 00:18:24]} {[%emt 00:01:39]} 26. Be3 {[%clk 00:35:01]} {[%emt
00:00:59]} Bf6 {[%clk 00:17:23]} {[%emt 00:01:32]} 27. Rd1 {[%clk 00:35:07]}
{[%emt 00:00:24]} h6 {[%clk 00:17:19]} {[%emt 00:00:34]} 28. Bd4 {[%clk
00:31:16]} {[%emt 00:04:21]} Bxd4 {[%clk 00:07:12]} {[%emt 00:10:37]} 29. Rxd4
{[%clk 00:31:37]} {[%emt 00:00:09]} Nd3 {[%clk 00:07:15]} {[%emt 00:00:25]} 30.
Nd1 {[%clk 00:19:06]} {[%emt 00:13:03]} Qb6 {[%clk 00:06:38]} {[%emt 00:01:07]}
31. Qe3 {[%clk 00:18:56]} {[%emt 00:00:40]} Nxb2 {[%clk 00:04:14]} {[%emt
00:02:54]} 32. Qf2 {[%clk 00:18:05]} {[%emt 00:01:22]} Nd3 {[%clk 00:03:37]}
{[%emt 00:01:07]} 33. Qe3 {[%clk 00:17:05]} {[%emt 00:01:29]} Nc1 {[%clk
00:03:16]} {[%emt 00:00:51]} 34. a5 {[%clk 00:15:08]} {[%emt 00:02:27]} Rxe3
{[%clk 00:02:08]} {[%emt 00:01:38]} 35. axb6 {[%clk 00:15:32]} {[%emt
00:00:06]} Ne2+ {[%clk 00:02:20]} {[%emt 00:00:18]} 36. Kf2 {[%clk 00:15:54]}
{[%emt 00:00:09]} Nxd4 {[%clk 00:02:19]} {[%emt 00:00:31]} 37. Kxe3 {[%clk
00:16:16]} {[%emt 00:00:08]} Nc2+ {[%clk 00:02:19]} {[%emt 00:00:28]} 38. Kd2
{[%clk 00:16:34]} {[%emt 00:00:13]} Na3 {[%clk 00:02:45]} {[%emt 00:00:05]} 39.
Ne3 {[%clk 00:16:49]} {[%emt 00:00:14]} Kf8 {[%clk 00:02:48]} {[%emt 00:00:26]}
40. Kc3 {[%clk 00:17:07]} {[%emt 00:00:13]} Ke7 {[%clk 00:02:40]} {[%emt
00:00:34]} 41. Kb4 {[%clk 00:12:53]} {[%emt 00:04:48]} Nb5 {[%clk 00:02:54]}
{[%emt 00:00:16]} 42. Nxc4 {[%clk 00:12:33]} {[%emt 00:00:51]} g5 {[%clk
00:00:37]} {[%emt 00:02:45]} 43. Kc5 {[%clk 00:11:55]} {[%emt 00:01:09]} f6
{[%clk 00:30:06]} {[%emt 00:01:00]} 44. Na5 {[%clk 00:42:02]} {[%emt 00:00:25]}
Nd6 {[%clk 00:30:09]} {[%emt 00:00:25]} 45. Nb3 {[%clk 00:38:53]} {[%emt
00:03:40]} Ke6 {[%clk 00:29:00]} {[%emt 00:01:37]} 46. Nd4+ {[%clk 00:39:13]}
{[%emt 00:00:13]} Ke5 {[%clk 00:28:06]} {[%emt 00:01:22]} 47. g3 {[%clk
00:39:14]} {[%emt 00:00:30]} Nf7 {[%clk 00:19:19]} {[%emt 00:09:14]} 48. Nc6
{[%clk 00:37:33]} {[%emt 00:02:14]} Ke6 {[%clk 00:18:15]} {[%emt 00:01:33]} 49.
f4 {[%clk 00:37:31]} {[%emt 00:00:32]} Nd6 {[%clk 00:13:18]} {[%emt 00:05:28]}
50. Nd4+ {[%clk 00:36:08]} {[%emt 00:01:53]} Kd7 {[%clk 00:13:00]} {[%emt
00:00:45]} 51. e5 {[%clk 00:36:23]} {[%emt 00:00:18]} fxe5 {[%clk 00:13:17]}
{[%emt 00:00:13]} 52. fxe5 {[%clk 00:36:42]} {[%emt 00:00:11]} Ne4+ {[%clk
00:13:33]} {[%emt 00:00:13]} 53. Kd5 {[%clk 00:37:11]} {[%emt 00:00:03]} Nxg3
{[%clk 00:13:52]} {[%emt 00:00:11]} 54. e6+ {[%clk 00:37:23]} {[%emt 00:00:17]}
Ke8 {[%clk 00:12:41]} {[%emt 00:01:39]} 55. Kd6 {[%clk 00:37:42]} {[%emt
00:00:13]} Ne4+ {[%clk 00:12:28]} {[%emt 00:00:44]} 56. Kc7 {[%clk 00:33:51]}
{[%emt 00:04:21]} Nc5 {[%clk 00:12:48]} {[%emt 00:00:09]} 57. Kd6 {[%clk
00:30:50]} {[%emt 00:03:32]} Na4 {[%clk 00:09:48]} {[%emt 00:03:29]} 58. Nf5
{[%clk 00:31:07]} {[%emt 00:00:13]} 1-0

[ePGN "0.1;DGT LiveChess/2.2.5"]

[Event "Schack-SM 2023: Junior-SM"]
[Site "Helsingborg Arena, Mellersta Stenbocksgatan 14, Helsingborg, Sweden"]
[Date "2023.07.01"]
[Round "1.1"]
[White "Ostlund, Joar"]
[Black "Carlsson, Ludvig"]
[Result "0-1"]
[TimeControl "90 minutes for 40 moves + 30 minutes for the rest of the game + 30 seconds per move from move one."]
[WhiteTitle "CM"]
[BlackTitle "IM"]
[WhiteElo "2265"]
[BlackElo "2373"]

1. d4 {[%clk 01:30:56]} {[%emt 00:00:02]} d5 {[%clk 01:30:40]} {[%emt
00:00:19]} 2. c4 {[%clk 01:31:07]} {[%emt 00:00:21]} c6 {[%clk 01:31:05]}
{[%emt 00:00:06]} 3. Nf3 {[%clk 01:31:18]} {[%emt 00:00:18]} Nf6 {[%clk
01:31:28]} {[%emt 00:00:06]} 4. Nc3 {[%clk 01:31:29]} {[%emt 00:00:20]} dxc4
{[%clk 01:31:50]} {[%emt 00:00:08]} 5. a4 {[%clk 01:31:42]} {[%emt 00:00:17]}
Bf5 {[%clk 01:32:13]} {[%emt 00:00:06]} 6. Ne5 {[%clk 01:31:47]} {[%emt
00:00:25]} Na6 {[%clk 01:32:36]} {[%emt 00:00:07]} 7. f3 {[%clk 01:11:37]}
{[%emt 00:20:41]} Nd7 {[%clk 01:32:56]} {[%emt 00:00:10]} 8. Nxd7 {[%clk
01:05:26]} {[%emt 00:06:41]} Bxd7 {[%clk 01:33:19]} {[%emt 00:00:06]} 9. e4
{[%clk 01:03:39]} {[%emt 00:02:17]} e5 {[%clk 01:33:43]} {[%emt 00:00:07]} 10.
Bxc4 {[%clk 00:57:46]} {[%emt 00:06:23]} exd4 {[%clk 01:34:04]} {[%emt
00:00:08]} 11. Qxd4 {[%clk 00:57:31]} {[%emt 00:00:45]} Nb4 {[%clk 01:34:29]}
{[%emt 00:00:05]} 12. Qe5+ {[%clk 00:49:03]} {[%emt 00:08:58]} Be6 {[%clk
01:34:09]} {[%emt 00:00:50]} 13. Bg5 {[%clk 00:40:17]} {[%emt 00:09:15]} Nc2+
{[%clk 01:30:40]} {[%emt 00:03:59]} 14. Kf2 {[%clk 00:21:18]} {[%emt 00:19:29]}
Qb6+ {[%clk 01:25:36]} {[%emt 00:05:35]} 15. Kg3 {[%clk 00:21:22]} {[%emt
00:00:27]} Qc5 {[%clk 01:15:09]} {[%emt 00:10:56]} 16. Qxc5 {[%clk 00:17:33]}
{[%emt 00:04:19]} Bxc5 {[%clk 01:15:32]} {[%emt 00:00:07]} 17. Rac1 {[%clk
00:16:20]} {[%emt 00:01:44]} Bxc4 {[%clk 01:15:54]} {[%emt 00:00:07]} 18. Rxc2
{[%clk 00:16:45]} {[%emt 00:00:05]} f6 {[%clk 01:13:19]} {[%emt 00:03:04]} 19.
Nb1 {[%clk 00:10:15]} {[%emt 00:07:01]} Bd6+ {[%clk 01:07:59]} {[%emt
00:05:50]} 20. Bf4 {[%clk 00:10:36]} {[%emt 00:00:09]} Bb3 {[%clk 01:08:18]}
{[%emt 00:00:10]} 21. Rc3 {[%clk 00:10:28]} {[%emt 00:00:39]} Bxf4+ {[%clk
01:08:40]} {[%emt 00:00:08]} 22. Kxf4 {[%clk 00:10:53]} {[%emt 00:00:05]} Bxa4
{[%clk 01:09:04]} {[%emt 00:00:06]} 23. Na3 {[%clk 00:10:33]} {[%emt 00:00:51]}
a6 {[%clk 01:08:22]} {[%emt 00:01:12]} 24. Ra1 {[%clk 00:06:27]} {[%emt
00:04:36]} O-O-O {[%clk 01:07:35]} {[%emt 00:01:16]} 25. b3 {[%clk 00:01:15]}
{[%emt 00:05:42]} Bb5 {[%clk 01:07:58]} {[%emt 00:00:06]} 26. Nxb5 {[%clk
00:01:40]} {[%emt 00:00:05]} axb5 {[%clk 01:08:23]} {[%emt 00:00:05]} 27. b4
{[%clk 00:00:34]} {[%emt 00:01:37]} Kc7 {[%clk 01:06:53]} {[%emt 00:02:00]} 28.
Rac1 {[%clk 00:00:32]} {[%emt 00:00:32]} Rd4 {[%clk 01:06:41]} {[%emt
00:00:41]} 29. Rb3 {[%clk 00:00:33]} {[%emt 00:00:29]} Rhd8 {[%clk 01:06:58]}
{[%emt 00:00:13]} 30. h4 {[%clk 00:00:34]} {[%emt 00:00:29]} Rc4 {[%clk
01:07:02]} {[%emt 00:00:26]} 31. Rcb1 {[%clk 00:00:41]} {[%emt 00:00:23]} Rdd4
{[%clk 01:05:51]} {[%emt 00:01:41]} 32. Kf5 {[%clk 00:00:41]} {[%emt 00:00:32]}
Kd6 {[%clk 01:04:31]} {[%emt 00:01:49]} 33. h5 {[%clk 00:01:05]} {[%emt
00:00:06]} Ke7 {[%clk 01:03:49]} {[%emt 00:01:12]} 34. Ra3 {[%clk 00:00:46]}
{[%emt 00:00:49]} Kf7 {[%clk 01:04:00]} {[%emt 00:00:19]} 0-1

[Event "Schack-SM 2023: Mastarklassen"]
[Site "Helsingborg Arena, Mellersta Stenbocksgatan 14, Helsingborg, Sweden"]
[Date "2023.07.01"]
[Round "1.4"]
[White "Nilsson, Patrik 1978"]
[Black "Nylen, Anders"]
[Result "1-0"]
[TimeControl "90 minutes for 40 moves + 30 minutes for the rest of games + 30 seconds per move from move one."]
[WhiteElo "2167"]
[BlackElo "2094"]

1. d4 {[%clk 01:30:56]} {[%emt 00:00:03]} Nf6 {[%clk 01:30:52]} {[%emt
00:00:09]} 2. Bf4 {[%clk 01:31:14]} {[%emt 00:00:11]} g6 {[%clk 01:30:59]}
{[%emt 00:00:23]} 3. Nc3 {[%clk 01:31:30]} {[%emt 00:00:14]} d5 {[%clk
01:30:57]} {[%emt 00:00:32]} 4. e3 {[%clk 01:31:50]} {[%emt 00:00:10]} Bg7
{[%clk 01:31:10]} {[%emt 00:00:17]} 5. h4 {[%clk 01:31:59]} {[%emt 00:00:20]}
h6 {[%clk 01:29:57]} {[%emt 00:01:43]} 6. Nf3 {[%clk 01:31:58]} {[%emt
00:00:32]} Bf5 {[%clk 01:29:06]} {[%emt 00:01:21]} 7. Ne5 {[%clk 01:30:00]}
{[%emt 00:02:28]} Ne4 {[%clk 01:23:25]} {[%emt 00:06:11]} 8. Nxe4 {[%clk
01:27:26]} {[%emt 00:03:04]} Bxe4 {[%clk 01:23:07]} {[%emt 00:00:48]} 9. f3
{[%clk 01:25:02]} {[%emt 00:02:53]} Bf5 {[%clk 01:23:17]} {[%emt 00:00:19]} 10.
g4 {[%clk 01:24:48]} {[%emt 00:00:45]} Be6 {[%clk 01:23:24]} {[%emt 00:00:23]}
11. Qd2 {[%clk 01:15:00]} {[%emt 00:10:19]} Nd7 {[%clk 01:21:16]} {[%emt
00:02:38]} 12. Nxd7 {[%clk 01:06:51]} {[%emt 00:08:39]} Qxd7 {[%clk 01:21:25]}
{[%emt 00:00:20]} 13. O-O-O {[%clk 01:07:07]} {[%emt 00:00:15]} O-O {[%clk
01:13:09]} {[%emt 00:08:46]} 14. Bd3 {[%clk 01:01:00]} {[%emt 00:06:37]} Qa4
{[%clk 01:09:55]} {[%emt 00:03:44]} 15. Kb1 {[%clk 00:57:24]} {[%emt 00:04:05]}
c5 {[%clk 01:08:55]} {[%emt 00:01:30]} 16. c3 {[%clk 00:57:44]} {[%emt
00:00:11]} Qd7 {[%clk 00:57:41]} {[%emt 00:11:45]} 17. Bc2 {[%clk 00:50:14]}
{[%emt 00:07:59]} Rad8 {[%clk 00:54:58]} {[%emt 00:03:12]} 18. h5 {[%clk
00:47:18]} {[%emt 00:03:26]} g5 {[%clk 00:54:33]} {[%emt 00:00:55]} 19. Bxg5
{[%clk 00:47:26]} {[%emt 00:00:23]} f5 {[%clk 00:51:25]} {[%emt 00:03:38]} 20.
Bf4 {[%clk 00:45:10]} {[%emt 00:02:46]} Rf6 {[%clk 00:43:07]} {[%emt 00:08:47]}
21. g5 {[%clk 00:44:41]} {[%emt 00:00:59]} hxg5 {[%clk 00:42:14]} {[%emt
00:01:23]} 22. Bxg5 {[%clk 00:45:04]} {[%emt 00:00:07]} Rf7 {[%clk 00:41:07]}
{[%emt 00:01:38]} 23. Rdg1 {[%clk 00:43:13]} {[%emt 00:02:20]} Kh8 {[%clk
00:39:38]} {[%emt 00:02:00]} 24. h6 {[%clk 00:39:47]} {[%emt 00:03:55]} Bf6
{[%clk 00:38:18]} {[%emt 00:01:50]} 25. Bxf6+ {[%clk 00:35:15]} {[%emt
00:05:03]} Rxf6 {[%clk 00:37:08]} {[%emt 00:01:39]} 26. Qg2 {[%clk 00:34:55]}
{[%emt 00:00:50]} Rf7 {[%clk 00:34:28]} {[%emt 00:03:11]} 27. h7 {[%clk
00:33:57]} {[%emt 00:01:27]} Qe8 {[%clk 00:32:08]} {[%emt 00:02:50]} 28. Qg8+
{[%clk 00:34:03]} {[%emt 00:00:24]} 1-0

[Event "Schack-SM 2023: Veteran-SM 65+"]
[Site "Helsingborg Arena, Mellersta Stenbocksgatan 14, Helsingborg, Sweden"]
[Date "2023.07.01"]
[Round "1.3"]
[White "Hedin, Gunnar"]
[Black "Olsson, Thomas"]
[Result "1/2-1/2"]
[TimeControl "90 minutes for 40 moves + 30 minutes for the rest of games + 30 seconds per move from move one."]
[WhiteElo "2093"]
[BlackElo "1874"]

1. d4 {[%clk 01:30:28]} {[%emt 00:00:31]} Nf6 {[%clk 01:30:18]} {[%emt
00:00:42]} 2. c4 {[%clk 01:30:36]} {[%emt 00:00:22]} d6 {[%clk 01:30:08]}
{[%emt 00:00:40]} 3. Nc3 {[%clk 01:29:23]} {[%emt 00:01:44]} g6 {[%clk
01:29:25]} {[%emt 00:01:12]} 4. e4 {[%clk 01:29:23]} {[%emt 00:00:30]} Bg7
{[%clk 01:29:44]} {[%emt 00:00:11]} 5. h3 {[%clk 01:28:49]} {[%emt 00:01:05]}
c6 {[%clk 01:26:32]} {[%emt 00:03:42]} 6. Be3 {[%clk 01:20:40]} {[%emt
00:08:39]} Qa5 {[%clk 01:17:08]} {[%emt 00:09:52]} 7. Qd2 {[%clk 01:17:33]}
{[%emt 00:03:37]} Nbd7 {[%clk 01:06:11]} {[%emt 00:11:29]} 8. Nf3 {[%clk
01:16:39]} {[%emt 00:01:24]} O-O {[%clk 01:01:05]} {[%emt 00:05:35]} 9. Rb1
{[%clk 01:11:56]} {[%emt 00:05:14]} e5 {[%clk 00:55:56]} {[%emt 00:05:38]} 10.
b4 {[%clk 01:09:47]} {[%emt 00:02:39]} Qc7 {[%clk 00:55:43]} {[%emt 00:00:43]}
11. d5 {[%clk 00:53:02]} {[%emt 00:17:16]} cxd5 {[%clk 00:47:12]} {[%emt
00:09:01]} 12. cxd5 {[%clk 00:52:59]} {[%emt 00:00:33]} Nb6 {[%clk 00:37:51]}
{[%emt 00:09:50]} 13. Nb5 {[%clk 00:44:49]} {[%emt 00:08:40]} Qd8 {[%clk
00:37:26]} {[%emt 00:00:54]} 14. Bd3 {[%clk 00:43:30]} {[%emt 00:01:51]} Ne8
{[%clk 00:35:58]} {[%emt 00:01:56]} 15. g4 {[%clk 00:31:25]} {[%emt 00:12:36]}
Bd7 {[%clk 00:33:39]} {[%emt 00:02:49]} 16. Rg1 {[%clk 00:24:52]} {[%emt
00:07:03]} Bxb5 {[%clk 00:28:54]} {[%emt 00:05:15]} 17. Bxb5 {[%clk 00:24:56]}
{[%emt 00:00:25]} Rc8 {[%clk 00:21:20]} {[%emt 00:08:05]} 18. Rc1 {[%clk
00:24:41]} {[%emt 00:00:46]} Rxc1+ {[%clk 00:21:13]} {[%emt 00:00:36]} 19. Qxc1
{[%clk 00:25:09]} {[%emt 00:00:02]} Nf6 {[%clk 00:20:11]} {[%emt 00:01:32]} 20.
Nd2 {[%clk 00:20:31]} {[%emt 00:05:08]} Nfd7 {[%clk 00:18:04]} {[%emt
00:02:38]} 21. Nb3 {[%clk 00:12:06]} {[%emt 00:08:55]} Qb8 {[%clk 00:14:57]}
{[%emt 00:03:36]} 22. Na5 {[%clk 00:11:57]} {[%emt 00:00:40]} Rc8 {[%clk
00:14:19]} {[%emt 00:01:06]} 23. Qd2 {[%clk 00:12:25]} {[%emt 00:00:03]} Rc7
{[%clk 00:13:51]} {[%emt 00:00:58]} 24. Ke2 {[%clk 00:12:27]} {[%emt 00:00:29]}
Bf6 {[%clk 00:10:08]} {[%emt 00:04:12]} 25. g5 {[%clk 00:10:54]} {[%emt
00:02:03]} Bd8 {[%clk 00:09:58]} {[%emt 00:00:40]} 26. Rc1 {[%clk 00:10:49]}
{[%emt 00:00:36]} a6 {[%clk 00:07:45]} {[%emt 00:02:42]} 27. Bd3 {[%clk
00:10:35]} {[%emt 00:00:44]} Qc8 {[%clk 00:07:40]} {[%emt 00:00:35]} 28. Rxc7
{[%clk 00:10:25]} {[%emt 00:00:40]} Qxc7 {[%clk 00:06:56]} {[%emt 00:01:14]} 29.
Qc1 {[%clk 00:10:29]} {[%emt 00:00:27]} Qb8 {[%clk 00:06:29]} {[%emt 00:00:56]}
30. h4 {[%clk 00:10:10]} {[%emt 00:00:49]} Nc8 {[%clk 00:05:29]} {[%emt
00:01:29]} 31. Kd1 {[%clk 00:08:14]} {[%emt 00:02:26]} Bb6 {[%clk 00:05:20]}
{[%emt 00:00:40]} 32. Bxb6 {[%clk 00:07:23]} {[%emt 00:01:21]} Ndxb6 {[%clk
00:05:13]} {[%emt 00:00:37]} 33. Bf1 {[%clk 00:07:26]} {[%emt 00:00:27]} Na7
{[%clk 00:04:25]} {[%emt 00:01:18]} 34. Qc2 {[%clk 00:04:26]} {[%emt 00:03:31]}
Nb5 {[%clk 00:04:10]} {[%emt 00:00:44]} 35. Bxb5 {[%clk 00:04:43]} {[%emt
00:00:13]} axb5 {[%clk 00:04:28]} {[%emt 00:00:13]} 36. Qd3 {[%clk 00:04:59]}
{[%emt 00:00:13]} Na4 {[%clk 00:03:37]} {[%emt 00:01:21]} 37. Kd2 {[%clk
00:04:51]} {[%emt 00:00:38]} Qc7 {[%clk 00:02:42]} {[%emt 00:01:24]} 38. Qc2
{[%clk 00:03:19]} {[%emt 00:02:03]} Qb6 {[%clk 00:02:40]} {[%emt 00:00:32]} 39.
Ke2 {[%clk 00:02:41]} {[%emt 00:01:08]} Qd4 {[%clk 00:02:34]} {[%emt 00:00:36]}
40. Nxb7 {[%clk 00:01:59]} {[%emt 00:01:12]} Qxb4 {[%clk 00:01:16]} {[%emt
00:01:47]} 41. f3 {[%clk 00:19:48]} {[%emt 00:12:42]} 1/2-1/2

[Event "Schack-SM 2023: Veteran-SM 50+"]
[Site "Helsingborg Arena, Mellersta Stenbocksgatan 14, Helsingborg, Sweden"]
[Date "2023.07.01"]
[Round "1.3"]
[White "Gamback, Bjorn"]
[Black "Johansson, Ingemar 1966"]
[Result "1-0"]
[TimeControl "90 minutes for 40 moves + 30 minutes for the rest of games + 30 seconds per move from move one."]
[WhiteTitle "CM"]
[WhiteElo "2048"]
[BlackElo "1839"]

1. e4 {[%clk 01:30:56]} {[%emt 00:00:04]} e6 {[%clk 01:30:51]} {[%emt
00:00:09]} 2. d4 {[%clk 01:31:19]} {[%emt 00:00:08]} d5 {[%clk 01:31:11]}
{[%emt 00:00:09]} 3. e5 {[%clk 01:31:45]} {[%emt 00:00:05]} c5 {[%clk
01:31:15]} {[%emt 00:00:26]} 4. Nf3 {[%clk 01:32:10]} {[%emt 00:00:04]} Qb6
{[%clk 01:30:39]} {[%emt 00:01:06]} 5. Bd3 {[%clk 01:32:11]} {[%emt 00:00:29]}
Nc6 {[%clk 01:30:20]} {[%emt 00:00:50]} 6. O-O {[%clk 01:32:17]} {[%emt
00:00:24]} cxd4 {[%clk 01:28:41]} {[%emt 00:02:09]} 7. Nbd2 {[%clk 01:32:30]}
{[%emt 00:00:16]} Nge7 {[%clk 01:26:48]} {[%emt 00:02:23]} 8. Nb3 {[%clk
01:32:41]} {[%emt 00:00:19]} Ng6 {[%clk 01:26:35]} {[%emt 00:00:43]} 9. Re1
{[%clk 01:32:57]} {[%emt 00:00:15]} Bd7 {[%clk 01:24:29]} {[%emt 00:02:36]} 10.
h4 {[%clk 01:31:27]} {[%emt 00:01:59]} Qc7 {[%clk 01:18:05]} {[%emt 00:06:54]}
11. Qe2 {[%clk 01:30:59]} {[%emt 00:00:57]} Bb4 {[%clk 01:15:38]} {[%emt
00:02:58]} 12. Bd2 {[%clk 01:28:51]} {[%emt 00:02:38]} Bxd2 {[%clk 01:14:05]}
{[%emt 00:02:03]} 13. Nbxd2 {[%clk 01:29:03]} {[%emt 00:00:19]} Nf4 {[%clk
01:11:26]} {[%emt 00:03:08]} 14. Qf1 {[%clk 01:27:11]} {[%emt 00:02:22]} Nxd3
{[%clk 01:09:55]} {[%emt 00:02:02]} 15. cxd3 {[%clk 01:23:40]} {[%emt
00:04:01]} O-O {[%clk 01:07:23]} {[%emt 00:03:00]} 16. Nb3 {[%clk 01:23:49]}
{[%emt 00:00:22]} Qb6 {[%clk 01:04:42]} {[%emt 00:03:11]} 17. Qe2 {[%clk
01:22:16]} {[%emt 00:02:03]} Qb4 {[%clk 00:55:49]} {[%emt 00:09:24]} 18. Rac1
{[%clk 01:20:01]} {[%emt 00:02:44]} b6 {[%clk 00:55:30]} {[%emt 00:00:50]} 19.
Rc2 {[%clk 01:09:56]} {[%emt 00:10:35]} a5 {[%clk 00:47:28]} {[%emt 00:08:32]}
20. Rec1 {[%clk 01:07:48]} {[%emt 00:02:37]} Rfc8 {[%clk 00:46:31]} {[%emt
00:01:28]} 21. Ng5 {[%clk 00:59:37]} {[%emt 00:08:41]} h6 {[%clk 00:43:23]}
{[%emt 00:03:38]} 22. Nh3 {[%clk 00:57:41]} {[%emt 00:02:26]} Qa4 {[%clk
00:36:19]} {[%emt 00:07:33]} 23. Na1 {[%clk 00:36:33]} {[%emt 00:21:39]} Qxa2
{[%clk 00:32:49]} {[%emt 00:04:00]} 24. Nf4 {[%clk 00:35:30]} {[%emt 00:01:33]}
Ne7 {[%clk 00:30:23]} {[%emt 00:02:56]} 25. Qd1 {[%clk 00:29:38]} {[%emt
00:06:22]} Rxc2 {[%clk 00:28:42]} {[%emt 00:02:11]} 26. Rxc2 {[%clk 00:29:14]}
{[%emt 00:00:54]} Ba4 {[%clk 00:27:09]} {[%emt 00:02:00]} 27. b3 {[%clk
00:27:48]} {[%emt 00:01:58]} Bxb3 {[%clk 00:27:06]} {[%emt 00:00:33]} 28. Nxb3
{[%clk 00:28:08]} {[%emt 00:00:10]} Qa4 {[%clk 00:21:42]} {[%emt 00:05:54]} 29.
Rc7 {[%clk 00:23:25]} {[%emt 00:05:13]} Qb4 {[%clk 00:20:09]} {[%emt 00:02:04]}
30. g4 {[%clk 00:07:27]} {[%emt 00:16:28]} a4 {[%clk 00:20:05]} {[%emt
00:00:34]} 31. Na1 {[%clk 00:07:51]} {[%emt 00:00:05]} Kf8 {[%clk 00:19:12]}
{[%emt 00:01:24]} 32. g5 {[%clk 00:05:17]} {[%emt 00:03:03]} hxg5 {[%clk
00:19:18]} {[%emt 00:00:24]} 33. hxg5 {[%clk 00:05:22]} {[%emt 00:00:26]} g6
{[%clk 00:18:34]} {[%emt 00:01:14]} 34. Nc2 {[%clk 00:04:45]} {[%emt 00:01:07]}
Qb2 {[%clk 00:17:51]} {[%emt 00:01:13]} 35. Qf3 {[%clk 00:02:06]} {[%emt
00:03:09]} Ke8 {[%clk 00:14:43]} {[%emt 00:03:39]} 36. Nxg6 {[%clk 00:01:07]}
{[%emt 00:01:28]} Qc1+ {[%clk 00:12:21]} {[%emt 00:02:52]} 37. Kh2 {[%clk
00:01:30]} {[%emt 00:00:06]} Nf5 {[%clk 00:11:02]} {[%emt 00:01:49]} 38. Qh5
{[%clk 00:01:43]} {[%emt 00:00:16]} 1-0